fUST/lending_fUST_20250615
["ID","MTS","AMOUNT","RATE_DAILY","PERIOD"]
[365815095,1749933048323,-380.0,0.00023013,4]
[365815096,1749933048333,-390.0,0.00023013,4]
[365815097,1749933048343,-460.0,0.00023013,4]
[365815098,1749933048353,-460.0,0.00023013,4]
[365815099,1749933048363,-460.0,0.00023013,4]
[365815100,1749933048373,-460.0,0.00023013,4]
[365815101,1749933048384,-460.0,0.00023013,4]
[365815102,1749933048394,-460.0,0.00023013,4]
[365815103,1749933048404,-460.0,0.00023013,4]
[365815104,1749933048414,-460.0,0.00023013,4]
[365815105,1749933048425,-460.0,0.00023013,4]
[365815106,1749933048435,-460.0,0.00023013,4]
[365815107,1749933048445,-460.0,0.00023013,4]
[365815108,1749933048456,-460.0,0.00023013,4]
[365815109,1749933048467,-460.0,0.00023013,4]
[365815110,1749933048476,-916.82,0.00023013,4]
[365815111,1749933048486,-460.0,0.00023013,4]
[365815112,1749933048496,-3122.03,0.00023013,4]
[365815113,1749933048506,-460.0,0.00023013,4]
[365815114,1749933048517,-460.0,0.00023013,4]
[365815115,1749933048527,-516.96,0.00023013,4]
[365815116,1749933048537,-290.0,0.00023013,4]
[365815117,1749933048548,-310.0,0.00023013,4]
[365815118,1749933048558,-1202.49,0.00023013,4]
[365815119,1749933048568,-460.0,0.00023013,4]
[365815120,1749933048578,-177.77189891,0.00023013,4]
[365815121,1749933048588,-228.91941051,0.00023013,4]
[365815122,1749933048598,-460.0,0.00023013,4]
[365815123,1749933048608,-500.0,0.00023013,4]
[365815124,1749933048618,-460.0,0.00023013,4]
[365815125,1749933048628,-850.32,0.00023013,4]
[365815126,1749933048638,-460.0,0.00023013,4]
[365815127,1749933048649,-460.0,0.00023013,4]
[365815128,1749933048659,-460.0,0.00023013,4]
[365815129,1749933048669,-356.70651187,0.00023013,4]
[365815130,1749933048680,-460.0,0.00023013,4]
[365815131,1749933048691,-690.01,0.00023013,4]
[365815132,1749933048701,-460.0,0.00023013,4]
[365815133,1749933048711,-1066.53,0.00023013,4]
[365815134,1749933048721,-460.0,0.00023013,4]
[365815135,1749933048732,-460.0,0.00023013,4]
[365815136,1749933048742,-2768.92,0.00023013,4]
[365815137,1749933048753,-460.0,0.00023013,4]
[365815138,1749933048763,-460.0,0.00023013,4]
[365815139,1749933048775,-1078.94,0.00023013,4]
[365815140,1749933048786,-460.0,0.00023013,4]
[365815141,1749933048796,-460.0,0.00023013,4]
[365815142,1749933048806,-553.87,0.00023013,4]
[365815143,1749933048817,-460.0,0.00023013,4]
[365815144,1749933048827,-460.0,0.00023013,4]
[365815145,1749933048841,-729.35,0.00023013,4]
[365815146,1749933048851,-2881.89,0.00023013,4]
[365815147,1749933048861,-519.99,0.00023013,4]
[365815148,1749933048873,-460.0,0.00023013,4]
[365815149,1749933048883,-460.0,0.00023013,4]
[365815150,1749933048893,-460.0,0.00023013,4]
[365815151,1749933048903,-681.4,0.00023013,4]
[365815152,1749933048914,-460.0,0.00023013,4]
[365815153,1749933048924,-460.0,0.00023013,4]
[365815154,1749933048934,-460.0,0.00023013,4]
[365815155,1749933048944,-1270.48,0.00023013,4]
[365815156,1749933048954,-1055.51,0.00023013,4]
[365815157,1749933048964,-460.0,0.00023013,4]
[365815158,1749933048974,-1350.21,0.00023013,4]
[365815159,1749933048984,-496.27,0.00023013,4]
[365815160,1749933048994,-460.0,0.00023013,4]
[365815161,1749933049003,-219.57314598,0.00023013,4]
[365815162,1749933049013,-460.0,0.00023013,4]
[365815163,1749933049024,-3073.64,0.00023013,4]
[365815164,1749933049034,-540.12,0.00023013,2]
[365815165,1749933049044,-3018.1,0.00023013,4]
[365815166,1749933049053,-460.0,0.00023013,4]
[365815167,1749933049063,-460.0,0.00023013,4]
[365815168,1749933049073,-460.0,0.00023013,4]
[365815169,1749933049084,-460.0,0.00023013,4]
[365815170,1749933049094,-460.0,0.00023013,4]
[365815171,1749933049104,-3310.65,0.00023013,4]
[365815172,1749933049115,-460.0,0.00023013,4]
[365815173,1749933049125,-420.0,0.00023013,4]
[365815174,1749933049135,-460.0,0.00023013,4]
[365815175,1749933049145,-460.0,0.00023013,4]
[365815176,1749933049156,-643.5,0.00023013,4]
[365815177,1749933049166,-460.0,0.00023013,4]
[365815178,1749933049176,-724.35,0.00023013,4]
[365815179,1749933049186,-1522.71,0.00023013,4]
[365815180,1749933049198,-460.0,0.00023013,4]
[365815181,1749933049207,-460.0,0.00023013,4]
[365815182,1749933049217,-460.0,0.00023013,4]
[365815183,1749933049227,-460.0,0.00023013,4]
[365815184,1749933049236,-460.0,0.00023013,4]
[365815185,1749933049246,-1129.33,0.00023013,4]
[365815186,1749933049255,-322.7260579,0.00023013,4]
[365815187,1749933049266,-1881.01,0.00023013,4]
[365815188,1749933049277,-460.0,0.00023013,4]
[365815189,1749933049287,-460.0,0.00023013,4]
[365815190,1749933049297,-1534.99,0.00023013,4]
[365815191,1749933049306,-2112.48,0.00023013,4]
[365815192,1749933049316,-714.94,0.00023013,4]
[365815193,1749933049325,-400.0,0.00023013,4]
[365815194,1749933049336,-460.0,0.00023013,4]
[365815195,1749933049347,-1000.0,0.00023021,2]
[365815196,1749933049357,-1000.0,0.00023021,2]
[365815197,1749933049367,-1000.0,0.00023021,2]
[365815198,1749933049377,-1000.0,0.00023021,2]
[365815199,1749933049387,-1200.0,0.00023021,2]
[365815200,1749933049398,-500.0,0.00023021,2]
[365815201,1749933049408,-392.67113613,0.00023021,2]
[365815202,1749933049421,-852.58,0.00023054,3]
[365815203,1749933049432,-365.2762568,0.00023068,2]
[365815204,1749933049549,-365.2762568,0.00023068,2]
[365815205,1749933049559,-365.2762568,0.00023068,2]
[365815206,1749933049569,-365.2762568,0.00023068,2]
[365815207,1749933049579,-365.2762568,0.00023068,2]
[365815208,1749933049588,-365.2762568,0.00023068,2]
[365815209,1749933049598,-365.2762568,0.00023068,2]
[365815210,1749933049607,-365.2762568,0.00023068,2]
[365815211,1749933049617,-365.2762568,0.00023068,2]
[365815212,1749933049628,-365.2762568,0.00023068,2]
[365815213,1749933049638,-233.7867369,0.00023068,2]
[365815214,1749933049648,-1500.0,0.00023068,2]
[365815215,1749933049659,-5000.0,0.00023086,2]
[365815216,1749933049668,-425.09696969,0.00023092,2]
[365815217,1749933049679,-1390.77124996,0.00023107,8]
[365815218,1749933049688,-500.0,0.0002315,4]
[365815219,1749933049698,-151.0,0.0002315,4]
[365815220,1749933049708,-500.0,0.0002315,4]
[365815221,1749933049718,-201.20239887,0.0002315,4]
[365815222,1749933049727,-500.0,0.0002315,4]
[365815223,1749933049737,-500.0,0.0002315,4]
[365815224,1749933049747,-151.0,0.0002315,4]
[365815225,1749933049756,-500.0,0.0002315,4]
[365815226,1749933049766,-500.0,0.0002315,4]
[365815227,1749933049778,-151.0,0.0002315,4]
[365815228,1749933049787,-247.09869764,0.0002315,4]
[365815229,1749933049797,-852.58,0.00023154,2]
[365815230,1749933049807,-500.0,0.00023177,4]
[365815231,1749933049816,-152.63117165,0.00023177,4]
[365815232,1749933049825,-500.0,0.00023177,4]
[365815233,1749933049839,-500.0,0.00023177,4]
[365815234,1749933049855,-500.0,0.00023177,4]
[365815235,1749933049866,-151.0,0.00023177,4]
[365815236,1749933049877,-523.16588728,0.00023177,4]
[365815237,1749933049888,-500.0,0.00023177,4]
[365815238,1749933049899,-151.0,0.00023177,4]
[365815239,1749933049909,-24112.60626682,0.000232,7]
[365815240,1749933049921,-500.0,0.00023205,4]
[365815241,1749933049935,-500.0,0.00023205,4]
[365815242,1749933049945,-500.0,0.00023205,4]
[365815243,1749933049954,-500.0,0.00023205,4]
[365815244,1749933049964,-151.0,0.00023205,4]
[365815245,1749933049975,-500.0,0.00023205,4]
[365815246,1749933049986,-206.19301128,0.00023205,4]
[365815247,1749933049997,-500.0,0.00023205,4]
[365815248,1749933050008,-151.0,0.00023205,4]
[365815249,1749933050017,-271.97510472,0.00023205,4]
[365815250,1749933050029,-151.0,0.00023205,4]
[365815251,1749933050038,-500.0,0.00023205,4]
[365815252,1749933050048,-151.0,0.00023205,4]
[365815253,1749933050058,-151.0,0.00023205,4]
[365815254,1749933050067,-151.0,0.00023205,4]
[365815255,1749933050076,-226.05021002,0.00023205,4]
[365815256,1749933050086,-271.13814479,0.00023205,4]
[365815257,1749933050094,-151.0,0.00023205,4]
[365815258,1749933050104,-193.34465452,0.00023205,4]
[365815259,1749933050113,-151.0,0.00023205,4]
[365815260,1749933050123,-287.63485949,0.00023205,4]
[365815261,1749933050132,-151.0,0.00023205,4]
[365815262,1749933050142,-151.38444775,0.00023205,4]
[365815263,1749933050151,-500.0,0.00023205,4]
[365815264,1749933050160,-151.0,0.00023205,4]
[365815265,1749933050170,-151.0,0.00023205,4]
[365815266,1749933050180,-500.0,0.00023205,4]
[365815267,1749933050189,-151.0,0.00023205,4]
[365815268,1749933050199,-151.0,0.00023205,2]
[365815269,1749933050208,-230.39526265,0.00023205,4]
[365815270,1749933050218,-151.0,0.00023205,4]
[365815271,1749933050227,-500.0,0.00023232,4]
[365815272,1749933050236,-500.0,0.00023232,4]
[365815273,1749933050246,-500.0,0.00023232,4]
[365815274,1749933050256,-151.0,0.00023232,4]
[365815275,1749933050265,-151.0,0.00023232,4]
[365815276,1749933050276,-500.0,0.00023232,4]
[365815277,1749933050286,-151.0,0.00023232,4]
[365815278,1749933050295,-151.0,0.00023232,4]
[365815279,1749933050304,-500.0,0.00023232,4]
[365815280,1749933050314,-233.065671,0.00023232,4]
[365815281,1749933050323,-182.90148304,0.00023232,4]
[365815282,1749933050332,-151.0,0.00023232,4]
[365815283,1749933050342,-500.0,0.00023232,4]
[365815284,1749933050351,-151.0,0.00023232,4]
[365815285,1749933050361,-151.0,0.00023232,4]
[365815286,1749933050371,-500.0,0.00023232,4]
[365815287,1749933050380,-151.0,0.00023232,4]
[365815288,1749933050390,-2642.63,0.00023242,2]
[365815289,1749933050400,-1390.77124996,0.00023245,8]
[365815290,1749933050409,-852.58,0.00023254,3]
[365815291,1749933050419,-500.0,0.0002326,4]
[365815292,1749933050428,-500.0,0.0002326,4]
[365815293,1749933050438,-500.0,0.0002326,4]
[365815294,1749933050448,-151.0,0.0002326,4]
[365815295,1749933050457,-500.0,0.0002326,4]
[365815296,1749933050467,-245.0,0.0002326,4]
[365815297,1749933050476,-500.0,0.0002326,4]
[365815298,1749933050485,-500.0,0.0002326,4]
[365815299,1749933050494,-151.0,0.0002326,4]
[365815300,1749933050504,-151.0,0.0002326,4]
[365815301,1749933050514,-500.0,0.0002326,4]
[365815302,1749933050523,-151.0,0.0002326,4]
[365815303,1749933050534,-333.56436477,0.00023268,2]
[365815304,1749933050543,-500.0,0.00023287,4]
[365815305,1749933050553,-500.0,0.00023287,4]
[365815306,1749933050563,-500.0,0.00023287,4]
[365815307,1749933050572,-193.15774951,0.00023287,4]
[365815308,1749933050581,-151.0,0.00023287,7]
[365815309,1749933050591,-180.4,0.00023287,7]
[365815310,1749933050601,-180.4,0.00023287,7]
[365815311,1749933050610,-151.0,0.00023287,7]
[365815312,1749933050620,-460.0,0.00023287,4]
[365815313,1749933050629,-460.0,0.00023287,4]
[365815314,1749933050639,-460.0,0.00023287,4]
[365815315,1749933050648,-460.0,0.00023287,4]
[365815316,1749933050657,-460.0,0.00023287,4]
[365815317,1749933050666,-460.0,0.00023287,4]
[365815318,1749933050675,-440.0,0.00023287,4]
[365815319,1749933050684,-161.226806,0.00023287,7]
[365815320,1749933050693,-460.0,0.00023287,4]
[365815321,1749933050702,-161.226806,0.00023287,7]
[365815322,1749933050712,-460.0,0.00023287,4]
[365815323,1749933050721,-460.0,0.00023287,4]
[365815324,1749933050730,-460.0,0.00023287,4]
[365815325,1749933050739,-460.0,0.00023287,4]
[365815326,1749933050748,-460.0,0.00023287,4]
[365815327,1749933050758,-151.0,0.00023287,7]
[365815328,1749933050767,-460.0,0.00023287,4]
[365815329,1749933050779,-461.26777517,0.00023287,4]
[365815330,1749933050788,-460.0,0.00023287,4]
[365815331,1749933050798,-1590.88,0.00023287,4]
[365815332,1749933050808,-460.0,0.00023287,4]
[365815333,1749933050818,-460.0,0.00023287,4]
[365815334,1749933050828,-380.0,0.00023287,4]
[365815335,1749933050843,-460.0,0.00023287,4]
[365815336,1749933050852,-460.0,0.00023287,4]
[365815337,1749933050861,-460.0,0.00023287,4]
[365815338,1749933050871,-460.0,0.00023287,4]
[365815339,1749933050880,-440.0,0.00023287,4]
[365815340,1749933050890,-460.0,0.00023287,4]
[365815341,1749933050899,-460.0,0.00023287,4]
[365815342,1749933050908,-460.0,0.00023287,4]
[365815343,1749933050918,-916.82,0.00023287,4]
[365815344,1749933050928,-460.0,0.00023287,4]
[365815345,1749933050937,-3122.03,0.00023287,4]
[365815346,1749933050949,-460.0,0.00023287,4]
[365815347,1749933050958,-460.0,0.00023287,4]
[365815348,1749933050967,-516.96,0.00023287,4]
[365815349,1749933050976,-1202.49,0.00023287,4]
[365815350,1749933050985,-460.0,0.00023287,4]
[365815351,1749933050994,-460.0,0.00023287,4]
[365815352,1749933051005,-460.0,0.00023287,4]
[365815353,1749933051014,-850.32,0.00023287,4]
[365815354,1749933051025,-460.0,0.00023287,4]
[365815355,1749933051034,-460.0,0.00023287,4]
[365815356,1749933051043,-690.01,0.00023287,4]
[365815357,1749933051053,-460.0,0.00023287,4]
[365815358,1749933051063,-1066.53,0.00023287,4]
[365815359,1749933051072,-460.0,0.00023287,4]
[365815360,1749933051082,-460.0,0.00023287,4]
[365815361,1749933051091,-2768.92,0.00023287,4]
[365815362,1749933051101,-460.0,0.00023287,4]
[365815363,1749933051110,-420.0,0.00023287,4]
[365815364,1749933051120,-1078.94,0.00023287,4]
[365815365,1749933051129,-460.0,0.00023287,4]
[365815366,1749933051138,-460.0,0.00023287,4]
[365815367,1749933051147,-553.87,0.00023287,4]
[365815368,1749933051156,-460.0,0.00023287,4]
[365815369,1749933051166,-460.0,0.00023287,4]
[365815370,1749933051175,-729.35,0.00023287,4]
[365815371,1749933051184,-2881.89,0.00023287,4]
[365815372,1749933051193,-519.99,0.00023287,4]
[365815373,1749933051203,-460.0,0.00023287,4]
[365815374,1749933051212,-460.0,0.00023287,4]
[365815375,1749933051222,-681.4,0.00023287,4]
[365815376,1749933051231,-460.0,0.00023287,4]
[365815377,1749933051241,-1270.48,0.00023287,4]
[365815378,1749933051250,-1055.51,0.00023287,4]
[365815379,1749933051259,-260.0,0.00023287,4]
[365815380,1749933051268,-1350.21,0.00023287,4]
[365815381,1749933051281,-496.27,0.00023287,4]
[365815382,1749933051291,-460.0,0.00023287,4]
[365815383,1749933051300,-460.0,0.00023287,4]
[365815384,1749933051310,-3073.64,0.00023287,4]
[365815385,1749933051320,-540.12,0.00023287,2]
[365815386,1749933051329,-3018.1,0.00023287,4]
[365815387,1749933051339,-460.0,0.00023287,4]
[365815388,1749933051348,-460.0,0.00023287,4]
[365815389,1749933051358,-460.0,0.00023287,4]
[365815390,1749933051368,-380.0,0.00023287,4]
[365815391,1749933051378,-3310.65,0.00023287,4]
[365815392,1749933051387,-460.0,0.00023287,4]
[365815393,1749933051397,-643.5,0.00023287,4]
[365815394,1749933051407,-724.35,0.00023287,4]
[365815395,1749933051416,-1522.71,0.00023287,4]
[365815396,1749933051426,-460.0,0.00023287,4]
[365815397,1749933051435,-460.0,0.00023287,4]
[365815398,1749933051444,-460.0,0.00023287,4]
[365815399,1749933051454,-460.0,0.00023287,4]
[365815400,1749933051464,-430.0,0.00023287,4]
[365815401,1749933051473,-1129.33,0.00023287,4]
[365815402,1749933051483,-1881.01,0.00023287,4]
[365815403,1749933051492,-460.0,0.00023287,4]
[365815404,1749933051501,-460.0,0.00023287,4]
[365815405,1749933051510,-1534.99,0.00023287,4]
[365815406,1749933051522,-2112.48,0.00023287,4]
[365815407,1749933051533,-714.94,0.00023287,4]
[365815408,1749933051542,-460.0,0.00023287,4]
[365815409,1749933051552,-500.0,0.00023287,4]
[365815410,1749933051562,-500.0,0.00023287,4]
[365815411,1749933051571,-500.0,0.00023287,4]
[365815412,1749933051581,-151.0,0.00023287,4]
[365815413,1749933051590,-198.0,0.00023287,4]
[365815414,1749933051600,-500.0,0.00023287,4]
[365815415,1749933051609,-315.83081185,0.00023314,4]
[365815416,1749933051619,-500.0,0.00023314,4]
[365815417,1749933051628,-500.0,0.00023314,4]
[365815418,1749933051637,-500.0,0.00023315,4]
[365815419,1749933051647,-500.0,0.00023315,4]
[365815420,1749933051656,-500.0,0.00023315,4]
[365815421,1749933051665,-205.80618261,0.00023315,4]
[365815422,1749933051674,-500.0,0.00023315,4]
[365815423,1749933051683,-500.0,0.00023342,4]
[365815424,1749933051692,-500.0,0.00023342,4]
[365815425,1749933051701,-500.0,0.00023342,4]
[365815426,1749933051710,-500.0,0.00023342,4]
[365815427,1749933051719,-151.0,0.00023342,4]
[365815428,1749933051729,-500.0,0.00023342,4]
[365815429,1749933051738,-500.0,0.00023346,2]
[365815430,1749933051747,-119719.01283049,0.0002335,2]
[365815431,1749933051756,-852.58,0.00023354,7]
[365815432,1749933051765,-9977.93456913,0.00023357,2]
[365815433,1749933051776,-425.09696969,0.00023364,2]
[365815434,1749933051785,-500.0,0.00023369,4]
[365815435,1749933051794,-500.0,0.00023369,4]
[365815436,1749933051804,-500.0,0.00023369,4]
[365815437,1749933051813,-500.0,0.00023369,4]
[365815438,1749933051823,-500.0,0.00023369,4]
[365815439,1749933051833,-150.0,0.00023373,2]
[365815440,1749933051844,-1390.77124996,0.00023383,9]
[365815441,1749933051853,-500.0,0.00023397,4]
[365815442,1749933051863,-500.0,0.00023397,4]
[365815443,1749933051871,-500.0,0.00023397,4]
[365815444,1749933051881,-500.0,0.00023397,4]
[365815445,1749933051891,-500.0,0.00023397,4]
[365815446,1749933051900,-500.0,0.00023424,4]
[365815447,1749933051909,-500.0,0.00023424,4]
[365815448,1749933051919,-500.0,0.00023424,4]
[365815449,1749933051932,-500.0,0.00023424,4]
[365815450,1749933051941,-500.0,0.00023424,4]
[365815451,1749933051950,-500.0,0.00023451,4]
[365815452,1749933051960,-500.0,0.00023451,4]
[365815453,1749933051969,-224.0,0.00023452,4]
[365815454,1749933051978,-252.45466841,0.00023452,4]
[365815455,1749933051988,-500.0,0.00023452,4]
[365815456,1749933051997,-852.58,0.00023454,4]
[365815457,1749933052006,-500.0,0.00023479,4]
[365815458,1749933052015,-500.0,0.00023479,4]
[365815459,1749933052026,-509.47087601,0.00023479,4]
[365815460,1749933052035,-500.0,0.00023506,4]
[365815461,1749933052045,-1423.306195,0.0002352,3]
[365815462,1749933052054,-1390.77124996,0.00023521,9]
[365815463,1749933052064,-500.0,0.00023534,4]
[365815464,1749933052204,-852.58,0.00023554,3]
[365815465,1749933052214,-12150.41,0.0002356,5]
[365815466,1749933052223,-500.0,0.00023561,4]
[365815467,1749933052232,-560.0,0.00023561,4]
[365815468,1749933052242,-460.0,0.00023561,4]
[365815469,1749933052251,-460.0,0.00023561,4]
[365815470,1749933052261,-463.78525752,0.00023561,4]
[365815471,1749933052273,-460.0,0.00023561,4]
[365815472,1749933052282,-460.0,0.00023561,4]
[365815473,1749933052291,-460.0,0.00023561,4]
[365815474,1749933052301,-460.0,0.00023561,4]
[365815475,1749933052310,-400.0,0.00023561,4]
[365815476,1749933052320,-1590.88,0.00023561,4]
[365815477,1749933052330,-460.0,0.00023561,4]
[365815478,1749933052340,-460.0,0.00023561,4]
[365815479,1749933052350,-280.22664354,0.00023561,4]
[365815480,1749933052360,-151.0,0.00023561,7]
[365815481,1749933052369,-460.0,0.00023561,4]
[365815482,1749933052379,-151.0,0.00023561,7]
[365815483,1749933052389,-408.04607275,0.00023561,4]
[365815484,1749933052398,-460.0,0.00023561,4]
[365815485,1749933052408,-460.0,0.00023561,4]
[365815486,1749933052418,-916.82,0.00023561,4]
[365815487,1749933052427,-460.0,0.00023561,4]
[365815488,1749933052436,-3122.03,0.00023561,4]
[365815489,1749933052446,-460.0,0.00023561,4]
[365815490,1749933052455,-460.0,0.00023561,4]
[365815491,1749933052465,-516.96,0.00023561,4]
[365815492,1749933052474,-1202.49,0.00023561,4]
[365815493,1749933052483,-460.0,0.00023561,4]
[365815494,1749933052492,-460.0,0.00023561,4]
[365815495,1749933052502,-460.0,0.00023561,4]
[365815496,1749933052511,-850.32,0.00023561,4]
[365815497,1749933052522,-460.0,0.00023561,4]
[365815498,1749933052531,-460.0,0.00023561,4]
[365815499,1749933052541,-690.01,0.00023561,4]
[365815500,1749933052551,-460.0,0.00023561,4]
[365815501,1749933052561,-1066.53,0.00023561,4]
[365815502,1749933052571,-460.0,0.00023561,4]
[365815503,1749933052582,-2768.92,0.00023561,4]
[365815504,1749933052592,-460.0,0.00023561,4]
[365815505,1749933052602,-1078.94,0.00023561,4]
[365815506,1749933052611,-460.0,0.00023561,4]
[365815507,1749933052621,-553.87,0.00023561,4]
[365815508,1749933052631,-460.0,0.00023561,4]
[365815509,1749933052641,-729.35,0.00023561,4]
[365815510,1749933052650,-2881.89,0.00023561,4]
[365815511,1749933052659,-519.99,0.00023561,4]
[365815512,1749933052668,-460.0,0.00023561,4]
[365815513,1749933052678,-460.0,0.00023561,4]
[365815514,1749933052687,-681.4,0.00023561,4]
[365815515,1749933052696,-460.0,0.00023561,4]
[365815516,1749933052705,-1055.51,0.00023561,4]
[365815517,1749933052714,-1270.48,0.00023561,4]
[365815518,1749933052723,-1350.21,0.00023561,4]
[365815519,1749933052733,-496.27,0.00023561,4]
[365815520,1749933052742,-460.0,0.00023561,4]
[365815521,1749933052751,-460.0,0.00023561,4]
[365815522,1749933052761,-3073.64,0.00023561,4]
[365815523,1749933052770,-540.12,0.00023561,2]
[365815524,1749933052780,-3018.1,0.00023561,4]
[365815525,1749933052789,-460.0,0.00023561,4]
[365815526,1749933052799,-460.0,0.00023561,4]
[365815527,1749933052808,-460.0,0.00023561,4]
[365815528,1749933052818,-3310.65,0.00023561,4]
[365815529,1749933052828,-460.0,0.00023561,4]
[365815530,1749933052841,-643.5,0.00023561,4]
[365815531,1749933052851,-724.35,0.00023561,4]
[365815532,1749933052860,-1522.71,0.00023561,4]
[365815533,1749933052868,-460.0,0.00023561,4]
[365815534,1749933052878,-460.0,0.00023561,4]
[365815535,1749933052887,-460.0,0.00023561,4]
[365815536,1749933052896,-460.0,0.00023561,4]
[365815537,1749933052906,-1129.33,0.00023561,4]
[365815538,1749933052916,-1881.01,0.00023561,4]
[365815539,1749933052925,-460.0,0.00023561,4]
[365815540,1749933052935,-460.0,0.00023561,4]
[365815541,1749933052944,-1534.99,0.00023561,4]
[365815542,1749933052953,-2112.48,0.00023561,4]
[365815543,1749933052963,-714.94,0.00023561,4]
[365815544,1749933052972,-460.0,0.00023561,4]
[365815545,1749933052982,-1500.0,0.00023568,2]
[365815546,1749933052991,-500.0,0.00023568,2]
[365815547,1749933053000,-1500.0,0.00023568,2]
[365815548,1749933053010,-1800.0,0.00023568,2]
[365815549,1749933053019,-500.0,0.00023588,4]
[365815550,1749933053031,-67711.5744776,0.000236,2]
[365815551,1749933053047,-424.40141186,0.000236,3]
[365815552,1749933053056,-845.10789306,0.000236,3]
[365815553,1749933053066,-500.0,0.00023616,4]
[365815554,1749933053076,-2000.0,0.00023616,2]
[365815555,1749933053085,-5000.0,0.00023634,2]
[365815556,1749933053095,-291.21606054,0.00023643,4]
[365815557,1749933053104,-852.58,0.00023654,6]
[365815558,1749933053114,-1390.77124996,0.00023659,9]
[365815559,1749933053123,-15657.01815668,0.00023687,2]
[365815560,1749933053133,-168.0,0.00023689,2]
[365815561,1749933053142,-425.09696971,0.00023707,2]
[365815562,1749933053151,-587.0,0.00023712,2]
[365815563,1749933053160,-852.58,0.00023754,4]
[365815564,1749933053170,-653.0,0.00023756,2]
[365815565,1749933053179,-2160.0,0.00023756,2]
[365815566,1749933053188,-405.0,0.00023756,2]
[365815567,1749933053198,-405.0,0.00023756,2]
[365815568,1749933053207,-5188.43487911,0.0002376,2]
[365815569,1749933053217,-328.0,0.00023772,2]
[365815570,1749933053227,-253910.80518157,0.0002378,5]
[365815571,1749933053383,-12499.01756435,0.0002378,5]
[365815572,1749933053393,-22910.38900421,0.00023788,2]
[365815573,1749933053405,-1173.94331158,0.00023788,2]
[365815574,1749933053867,-476.41770466,0.00021917,4]
[365815575,1749933053877,-460.0,0.00021917,4]
[365815576,1749933053887,-460.0,0.00021917,4]
[365815577,1749933053896,-460.0,0.00021917,4]
[365815578,1749933053905,-2217.23,0.00022,7]
[365815579,1749933053916,-460.0,0.00022191,4]
[365815580,1749933053926,-460.0,0.00022191,4]
[365815581,1749933053935,-460.0,0.00022191,4]
[365815582,1749933053945,-460.0,0.00022465,4]
[365815583,1749933053954,-460.0,0.00022465,4]
[365815584,1749933053963,-460.0,0.00022465,4]
[365815585,1749933053972,-460.0,0.00022739,4]
[365815586,1749933053982,-2217.23,0.00023,7]
[365815587,1749933053992,-160.0,0.00023004,2]
[365815588,1749933054002,-2296.61,0.00023013,4]
[365815589,1749933054012,-460.0,0.00023013,4]
[365815590,1749933054024,-2296.61,0.00023287,4]
[365815591,1749933054033,-489.9427603,0.00023561,4]
[365815611,1749933637665,536.0,0.00023,120]
[365815635,1749934032164,-2643.8350304,0.00020294,2]
[365815636,1749934032190,-171.139915,0.00020357,2]